[Event "Titled Tuesday Blitz February 21 Late 2023"]
[White "Pein, Jonathan"]
[Black "Arvelo Leo, Gian Carlo"]
[WhiteFideId "417092"]
[BlackFideId "6402720"]
[WhiteElo "2265"]
[BlackElo "2075"]
[Result "0-1"]
[Round "06"]
[TimeControl "180+2"]
[Date "2023.02.21"]
[WhiteClock "0:01:05"]
[BlackClock "0:00:24"]

1. b3 {[%clk 0:03:00]}  Nf6 {[%clk 0:02:59]} 2. Bb2 {[%clk 0:03:01]}  g6 {[%clk 0:02:59]} 3. g4 {[%clk 0:03:00]}  Bg7 {[%clk 0:02:55]} 4. g5 {[%clk 0:02:59]}  Nh5 {[%clk 0:02:55]} 5. Bxg7 {[%clk 0:03:00]}  Nxg7 {[%clk 0:02:56]} 6. Nf3 {[%clk 0:02:58]}  d5 {[%clk 0:02:45]} 7. d4 {[%clk 0:02:56]}  c5 {[%clk 0:02:36]} 8. dxc5 {[%clk 0:02:54]}  Qa5+ {[%clk 0:02:32]} 9. c3 {[%clk 0:02:52]}  Qxc5 {[%clk 0:02:32]} 10. b4 {[%clk 0:02:51]}  Qd6 {[%clk 0:02:31]} 11. e3 {[%clk 0:02:47]}  Nc6 {[%clk 0:02:30]} 12. Nbd2 {[%clk 0:02:45]}  Bg4 {[%clk 0:02:21]} 13. h3 {[%clk 0:02:42]}  Bd7 {[%clk 0:02:09]} 14. Nb3 {[%clk 0:02:39]}  h6 {[%clk 0:02:04]} 15. gxh6 {[%clk 0:02:38]}  Rxh6 {[%clk 0:02:03]} 16. Nc5 {[%clk 0:02:37]}  O-O-O {[%clk 0:01:45]} 17. Qa4 {[%clk 0:02:26]}  Kb8 {[%clk 0:01:42]} 18. Qb5 {[%clk 0:02:17]}  Bc8 {[%clk 0:01:31]} 19. O-O-O {[%clk 0:02:12]}  Ne6 {[%clk 0:01:23]} 20. Ng5 {[%clk 0:01:48]}  Nxc5 {[%clk 0:00:52]} 21. Nxf7 {[%clk 0:01:47]}  Qf6 {[%clk 0:00:52]} 22. Nxd8 {[%clk 0:01:39]}  Qxc3+ {[%clk 0:00:52]} 23. Kb1 {[%clk 0:01:38]}  Nxb4 {[%clk 0:00:39]} 24. Rc1 {[%clk 0:01:23]}  Bf5+ {[%clk 0:00:38]} 25. Bd3 {[%clk 0:01:09]}  Bxd3+ {[%clk 0:00:38]} 26. Qxd3 {[%clk 0:01:06]}  Qxd3+ {[%clk 0:00:37]} 27. Ka1 {[%clk 0:01:07]}  Nc2+ {[%clk 0:00:30]} 28. Kb2 {[%clk 0:01:07]}  Na4+ {[%clk 0:00:30]} 29. Kb1 {[%clk 0:01:07]}  Na3+ {[%clk 0:00:27]} 30. Ka1 {[%clk 0:01:06]}  Qd2 {[%clk 0:00:25]} 31. Nc6+ {[%clk 0:01:03]}  bxc6 {[%clk 0:00:25]} 32. Rb1+ {[%clk 0:01:04]}  Nxb1 {[%clk 0:00:24]} 33. Rxb1+ {[%clk 0:01:05]}  Kc7 {[%clk 0:00:24]} 0-1


[Site "https://www.chess.com"]

[Event "Titled Tuesday Blitz February 21 Late 2023"]
[White "Melikhov, Evgeny V."]
[Black "Better_Chess_Faster"]
[WhiteFideId "4122046"]
[WhiteElo "2269"]
[BlackElo "1982"]
[Result "0-1"]
[Round "06"]
[TimeControl "180+2"]
[Date "2023.02.21"]
[WhiteClock "0:00:33"]
[BlackClock "0:00:48"]

1. d4 {[%clk 0:03:00]}  f5 {[%clk 0:02:58]} 2. e4 {[%clk 0:03:00]}  fxe4 {[%clk 0:02:57]} 3. Nc3 {[%clk 0:03:01]}  Nf6 {[%clk 0:02:57]} 4. Bg5 {[%clk 0:03:01]}  Nc6 {[%clk 0:02:55]} 5. d5 {[%clk 0:03:00]}  Ne5 {[%clk 0:02:55]} 6. Qe2 {[%clk 0:02:59]}  c6 {[%clk 0:02:46]} 7. f4 {[%clk 0:02:52]}  Nf7 {[%clk 0:02:44]} 8. O-O-O {[%clk 0:02:33]}  Nxg5 {[%clk 0:02:36]} 9. fxg5 {[%clk 0:02:33]}  Nxd5 {[%clk 0:02:35]} 10. Nxe4 {[%clk 0:02:26]}  e6 {[%clk 0:02:30]} 11. Nf3 {[%clk 0:02:21]}  Qa5 {[%clk 0:02:24]} 12. Kb1 {[%clk 0:02:18]}  Be7 {[%clk 0:02:19]} 13. Ne5 {[%clk 0:02:10]}  O-O {[%clk 0:02:15]} 14. Nc4 {[%clk 0:02:05]}  Qc7 {[%clk 0:02:13]} 15. h4 {[%clk 0:01:53]}  b5 {[%clk 0:02:12]} 16. Ne3 {[%clk 0:01:42]}  b4 {[%clk 0:02:11]} 17. h5 {[%clk 0:01:36]}  Rb8 {[%clk 0:02:10]} 18. g6 {[%clk 0:01:35]}  h6 {[%clk 0:02:08]} 19. Ng4 {[%clk 0:01:32]}  Nc3+ {[%clk 0:01:51]} 20. Nxc3 {[%clk 0:01:29]}  bxc3 {[%clk 0:01:50]} 21. b3 {[%clk 0:01:23]}  Qa5 {[%clk 0:01:46]} 22. Ka1 {[%clk 0:01:09]}  Rb6 {[%clk 0:01:35]} 23. Rh3 {[%clk 0:01:01]}  Qa3 {[%clk 0:01:23]} 24. Rb1 {[%clk 0:00:54]}  Ra6 {[%clk 0:01:19]} 25. Qxa6 {[%clk 0:00:53]}  Bxa6 {[%clk 0:01:18]} 26. Bxa6 {[%clk 0:00:53]}  Qxa6 {[%clk 0:01:17]} 27. Rxc3 {[%clk 0:00:53]}  Rf1 {[%clk 0:01:15]} 28. a4 {[%clk 0:00:48]}  Rxb1+ {[%clk 0:01:13]} 29. Kxb1 {[%clk 0:00:48]}  Qf1+ {[%clk 0:01:12]} 30. Ka2 {[%clk 0:00:48]}  Qxg2 {[%clk 0:01:12]} 31. Ne3 {[%clk 0:00:45]}  Qe2 {[%clk 0:01:09]} 32. Rd3 {[%clk 0:00:45]}  d5 {[%clk 0:01:03]} 33. Kb1 {[%clk 0:00:42]}  Qxh5 {[%clk 0:01:00]} 34. Rc3 {[%clk 0:00:39]}  c5 {[%clk 0:00:58]} 35. b4 {[%clk 0:00:37]}  c4 {[%clk 0:00:52]} 36. b5 {[%clk 0:00:33]}  Bb4 {[%clk 0:00:48]} 0-1


[Site "https://www.chess.com"]

[Event "Titled Tuesday Blitz February 21 Late 2023"]
[White "Nakamura, Hikaru"]
[Black "Kravtsiv, Martyn"]
[WhiteFideId "2016192"]
[BlackFideId "14113147"]
[WhiteElo "2775"]
[BlackElo "2598"]
[Result "1-0"]
[Round "07"]
[TimeControl "180+2"]
[Date "2023.02.21"]
[WhiteClock "0:00:34"]
[BlackClock "0:00:01"]

1. Nf3 {[%clk 0:03:00]}  Nf6 {[%clk 0:02:58]} 2. g3 {[%clk 0:03:00]}  d5 {[%clk 0:02:58]} 3. Bg2 {[%clk 0:03:00]}  e6 {[%clk 0:02:58]} 4. d3 {[%clk 0:03:00]}  c5 {[%clk 0:02:49]} 5. Nbd2 {[%clk 0:03:00]}  Nc6 {[%clk 0:02:49]} 6. e4 {[%clk 0:03:00]}  Bd6 {[%clk 0:02:47]} 7. O-O {[%clk 0:03:00]}  O-O {[%clk 0:02:41]} 8. Re1 {[%clk 0:03:00]}  Bc7 {[%clk 0:02:41]} 9. c3 {[%clk 0:02:56]}  e5 {[%clk 0:02:32]} 10. a3 {[%clk 0:02:36]}  dxe4 {[%clk 0:02:10]} 11. dxe4 {[%clk 0:02:36]}  b6 {[%clk 0:02:02]} 12. b4 {[%clk 0:02:30]}  cxb4 {[%clk 0:01:42]} 13. axb4 {[%clk 0:02:27]}  Be6 {[%clk 0:01:43]} 14. Bf1 {[%clk 0:02:21]}  a5 {[%clk 0:01:38]} 15. b5 {[%clk 0:02:15]}  Ne7 {[%clk 0:01:25]} 16. Ng5 {[%clk 0:02:11]}  Bg4 {[%clk 0:01:20]} 17. Qb3 {[%clk 0:02:11]}  h6 {[%clk 0:01:18]} 18. Ngf3 {[%clk 0:02:09]}  Be6 {[%clk 0:01:18]} 19. Bc4 {[%clk 0:02:09]}  Bxc4 {[%clk 0:01:15]} 20. Nxc4 {[%clk 0:02:09]}  Ng6 {[%clk 0:01:14]} 21. Ba3 {[%clk 0:02:01]}  Re8 {[%clk 0:01:14]} 22. Rad1 {[%clk 0:01:47]}  Qc8 {[%clk 0:01:13]} 23. Ne3 {[%clk 0:01:48]}  Nxe4 {[%clk 0:01:01]} 24. Nd5 {[%clk 0:01:44]}  Nf6 {[%clk 0:01:00]} 25. Nxf6+ {[%clk 0:01:35]}  gxf6 {[%clk 0:00:59]} 26. c4 {[%clk 0:01:23]}  Qf5 {[%clk 0:00:54]} 27. Nd2 {[%clk 0:01:08]}  e4 {[%clk 0:00:50]} 28. Qe3 {[%clk 0:00:56]}  Rad8 {[%clk 0:00:44]} 29. c5 {[%clk 0:00:53]}  bxc5 {[%clk 0:00:40]} 30. Qxc5 {[%clk 0:00:52]}  Qxc5 {[%clk 0:00:24]} 31. Bxc5 {[%clk 0:00:52]}  Ne5 {[%clk 0:00:23]} 32. Be3 {[%clk 0:00:45]}  Rxd2 {[%clk 0:00:09]} 33. Bxd2 {[%clk 0:00:39]}  Nf3+ {[%clk 0:00:10]} 34. Kf1 {[%clk 0:00:38]}  Nxe1 {[%clk 0:00:09]} 35. Rxe1 {[%clk 0:00:38]}  Kh7 {[%clk 0:00:05]} 36. Rc1 {[%clk 0:00:38]}  Bb6 {[%clk 0:00:02]} 37. Rc6 {[%clk 0:00:38]}  Rb8 {[%clk 0:00:03]} 38. Rxf6 {[%clk 0:00:38]}  Bd4 {[%clk 0:00:02]} 39. Rxf7+ {[%clk 0:00:34]}  Kg6 {[%clk 0:00:03]} 40. Rd7 {[%clk 0:00:35]}  Be5 {[%clk 0:00:03]} 41. Rd5 {[%clk 0:00:35]}  Bf6 {[%clk 0:00:03]} 42. Bxa5 {[%clk 0:00:35]}  Ra8 {[%clk 0:00:02]} 43. b6 {[%clk 0:00:34]}  Rb8 {[%clk 0:00:02]} 44. Rb5 {[%clk 0:00:32]}  Rb7 {[%clk 0:00:02]} 45. Bd2 {[%clk 0:00:32]}  Bd4 {[%clk 0:00:02]} 46. Be3 {[%clk 0:00:32]}  Bxe3 {[%clk 0:00:01]} 47. fxe3 {[%clk 0:00:33]}  Kf6 {[%clk 0:00:01]} 48. g4 {[%clk 0:00:34]} 1-0


[Site "https://www.chess.com"]

[Event "Titled Tuesday Blitz February 21 Late 2023"]
[White "Andreikin, Dmitry"]
[Black "Anton Guijarro, David"]
[WhiteFideId "4158814"]
[BlackFideId "2285525"]
[WhiteElo "2729"]
[BlackElo "2690"]
[Result "1-0"]
[Round "07"]
[TimeControl "180+2"]
[Date "2023.02.21"]
[WhiteClock "0:00:36"]
[BlackClock "0:00:31"]

1. c4 {[%clk 0:03:00]}  e5 {[%clk 0:02:58]} 2. e3 {[%clk 0:02:55]}  Nf6 {[%clk 0:02:54]} 3. Nc3 {[%clk 0:02:54]}  Bb4 {[%clk 0:02:51]} 4. Nge2 {[%clk 0:02:52]}  c6 {[%clk 0:02:48]} 5. a3 {[%clk 0:02:49]}  Ba5 {[%clk 0:02:47]} 6. b4 {[%clk 0:02:48]}  Bc7 {[%clk 0:02:47]} 7. Bb2 {[%clk 0:02:48]}  O-O {[%clk 0:02:45]} 8. d4 {[%clk 0:02:47]}  d6 {[%clk 0:02:31]} 9. Ng3 {[%clk 0:02:43]}  Re8 {[%clk 0:02:21]} 10. dxe5 {[%clk 0:02:36]}  dxe5 {[%clk 0:02:20]} 11. Qc2 {[%clk 0:02:36]}  a5 {[%clk 0:02:04]} 12. Rd1 {[%clk 0:02:16]}  Qe7 {[%clk 0:02:04]} 13. c5 {[%clk 0:02:16]}  axb4 {[%clk 0:02:02]} 14. axb4 {[%clk 0:02:16]}  b6 {[%clk 0:01:42]} 15. Bc4 {[%clk 0:01:29]}  Na6 {[%clk 0:01:32]} 16. Nf5 {[%clk 0:01:09]}  Bxf5 {[%clk 0:01:28]} 17. Qxf5 {[%clk 0:01:10]}  b5 {[%clk 0:01:24]} 18. Bb3 {[%clk 0:01:03]}  Nxb4 {[%clk 0:01:21]} 19. O-O {[%clk 0:01:03]}  Na6 {[%clk 0:01:13]} 20. Ne4 {[%clk 0:00:59]}  Nxe4 {[%clk 0:00:49]} 21. Rd7 {[%clk 0:00:46]}  g6 {[%clk 0:00:48]} 22. Bxf7+ {[%clk 0:00:38]}  Kf8 {[%clk 0:00:31]} 23. Bxg6+ {[%clk 0:00:36]} 1-0


[Site "https://www.chess.com"]

[Event "Titled Tuesday Blitz February 21 Late 2023"]
[White "Kamsky, Gata"]
[Black "Vachier-Lagrave, Maxime"]
[WhiteFideId "2000024"]
[BlackFideId "623539"]
[WhiteElo "2665"]
[BlackElo "2742"]
[Result "0-1"]
[Round "07"]
[TimeControl "180+2"]
[Date "2023.02.21"]
[WhiteClock "0:00:07"]
[BlackClock "0:00:45"]

1. e4 {[%clk 0:03:00]}  c5 {[%clk 0:02:58]} 2. Nf3 {[%clk 0:02:58]}  Nc6 {[%clk 0:02:59]} 3. d4 {[%clk 0:02:56]}  cxd4 {[%clk 0:03:00]} 4. Nxd4 {[%clk 0:02:57]}  Nf6 {[%clk 0:02:59]} 5. Nc3 {[%clk 0:02:57]}  e6 {[%clk 0:03:00]} 6. Ndb5 {[%clk 0:02:57]}  d6 {[%clk 0:02:59]} 7. Bf4 {[%clk 0:02:57]}  e5 {[%clk 0:03:00]} 8. Bg5 {[%clk 0:02:57]}  a6 {[%clk 0:03:00]} 9. Na3 {[%clk 0:02:57]}  b5 {[%clk 0:03:01]} 10. Nd5 {[%clk 0:02:57]}  Be7 {[%clk 0:03:01]} 11. Bxf6 {[%clk 0:02:58]}  Bxf6 {[%clk 0:03:02]} 12. c4 {[%clk 0:02:58]}  b4 {[%clk 0:03:03]} 13. Nc2 {[%clk 0:02:58]}  O-O {[%clk 0:03:04]} 14. Qf3 {[%clk 0:02:51]}  Bg5 {[%clk 0:02:58]} 15. h4 {[%clk 0:02:50]}  Bh6 {[%clk 0:02:56]} 16. g4 {[%clk 0:02:47]}  f6 {[%clk 0:02:54]} 17. Rd1 {[%clk 0:02:32]}  Be6 {[%clk 0:02:35]} 18. Be2 {[%clk 0:02:27]}  Rb8 {[%clk 0:02:23]} 19. Qg3 {[%clk 0:02:16]}  a5 {[%clk 0:02:10]} 20. O-O {[%clk 0:02:12]}  Bxd5 {[%clk 0:01:59]} 21. Rxd5 {[%clk 0:02:09]}  Ne7 {[%clk 0:01:59]} 22. Rb5 {[%clk 0:02:00]}  Bf4 {[%clk 0:01:55]} 23. Qd3 {[%clk 0:01:58]}  Qc7 {[%clk 0:01:41]} 24. Rd1 {[%clk 0:01:55]}  Rbd8 {[%clk 0:01:41]} 25. h5 {[%clk 0:01:46]}  g6 {[%clk 0:01:41]} 26. Ne3 {[%clk 0:01:45]}  gxh5 {[%clk 0:01:38]} 27. Nd5 {[%clk 0:01:37]}  Nxd5 {[%clk 0:01:36]} 28. Qxd5+ {[%clk 0:01:37]}  Kh8 {[%clk 0:01:32]} 29. Rb7 {[%clk 0:01:37]}  Qc8 {[%clk 0:01:32]} 30. Ra7 {[%clk 0:00:46]}  hxg4 {[%clk 0:01:29]} 31. Qb7 {[%clk 0:00:45]}  Qxb7 {[%clk 0:01:27]} 32. Rxb7 {[%clk 0:00:46]}  Rg8 {[%clk 0:01:19]} 33. Kg2 {[%clk 0:00:46]}  h5 {[%clk 0:01:12]} 34. Rb6 {[%clk 0:00:30]}  h4 {[%clk 0:01:11]} 35. Rbxd6 {[%clk 0:00:30]}  Rxd6 {[%clk 0:01:07]} 36. Rxd6 {[%clk 0:00:29]}  h3+ {[%clk 0:01:07]} 37. Kh1 {[%clk 0:00:30]}  g3 {[%clk 0:00:51]} 38. fxg3 {[%clk 0:00:29]}  Rxg3 {[%clk 0:00:52]} 39. Rd3 {[%clk 0:00:29]}  Be3 {[%clk 0:00:52]} 40. Bf1 {[%clk 0:00:18]}  Rg1+ {[%clk 0:00:43]} 41. Kh2 {[%clk 0:00:19]}  Rxf1 {[%clk 0:00:44]} 42. Kxh3 {[%clk 0:00:19]}  Rf2 {[%clk 0:00:44]} 43. Rxe3 {[%clk 0:00:18]}  Rxb2 {[%clk 0:00:44]} 44. a3 {[%clk 0:00:11]}  Rc2 {[%clk 0:00:43]} 45. axb4 {[%clk 0:00:11]}  axb4 {[%clk 0:00:44]} 46. Kg4 {[%clk 0:00:07]}  Kg7 {[%clk 0:00:45]} 0-1


[Site "https://www.chess.com"]

[Event "Titled Tuesday Blitz February 21 Late 2023"]
[White "Ibarra Jerez, Jose Carlos"]
[Black "Sarana, Alexey"]
[WhiteFideId "2226332"]
[BlackFideId "24133795"]
[WhiteElo "2563"]
[BlackElo "2685"]
[Result "1-0"]
[Round "07"]
[TimeControl "180+2"]
[Date "2023.02.21"]
[WhiteClock "0:00:12"]
[BlackClock "0:00:24"]

1. e4 {[%clk 0:03:00]}  e5 {[%clk 0:02:55]} 2. Nf3 {[%clk 0:03:00]}  Nc6 {[%clk 0:02:54]} 3. Nc3 {[%clk 0:03:00]}  Nf6 {[%clk 0:02:54]} 4. h3 {[%clk 0:03:01]}  Bb4 {[%clk 0:02:51]} 5. Nd5 {[%clk 0:03:01]}  Bd6 {[%clk 0:02:49]} 6. d3 {[%clk 0:02:51]}  Nxd5 {[%clk 0:02:48]} 7. exd5 {[%clk 0:02:50]}  Ne7 {[%clk 0:02:49]} 8. d4 {[%clk 0:02:21]}  e4 {[%clk 0:02:27]} 9. Ng5 {[%clk 0:02:21]}  f5 {[%clk 0:02:17]} 10. Qh5+ {[%clk 0:02:12]}  g6 {[%clk 0:02:16]} 11. Qh6 {[%clk 0:02:12]}  Nxd5 {[%clk 0:02:11]} 12. Nxh7 {[%clk 0:01:52]}  Rg8 {[%clk 0:02:07]} 13. Bc4 {[%clk 0:01:44]}  c6 {[%clk 0:02:07]} 14. Bxd5 {[%clk 0:01:34]}  cxd5 {[%clk 0:02:07]} 15. Bg5 {[%clk 0:01:35]}  Be7 {[%clk 0:02:07]} 16. h4 {[%clk 0:01:23]}  d6 {[%clk 0:01:49]} 17. h5 {[%clk 0:01:18]}  Bxg5 {[%clk 0:01:28]} 18. Nxg5 {[%clk 0:01:17]}  Qf6 {[%clk 0:01:27]} 19. O-O-O {[%clk 0:00:31]}  Bd7 {[%clk 0:01:26]} 20. Nh7 {[%clk 0:00:26]}  Qe7 {[%clk 0:01:07]} 21. hxg6 {[%clk 0:00:25]}  O-O-O {[%clk 0:01:06]} 22. Rh5 {[%clk 0:00:21]}  f4 {[%clk 0:00:55]} 23. Qg5 {[%clk 0:00:17]}  Qe6 {[%clk 0:00:45]} 24. Nf6 {[%clk 0:00:17]}  e3 {[%clk 0:00:26]} 25. Nxg8 {[%clk 0:00:13]}  exf2 {[%clk 0:00:24]} 26. Ne7+ {[%clk 0:00:13]}  Kb8 {[%clk 0:00:25]} 27. Nc6+ {[%clk 0:00:11]}  bxc6 {[%clk 0:00:25]} 28. Qxd8+ {[%clk 0:00:12]}  Kb7 {[%clk 0:00:26]} 29. Rh7 {[%clk 0:00:11]}  Qe3+ {[%clk 0:00:22]} 30. Kb1 {[%clk 0:00:12]}  Qxd4 {[%clk 0:00:23]} 31. Qxd7+ {[%clk 0:00:12]}  Ka6 {[%clk 0:00:23]} 32. Qb7+ {[%clk 0:00:12]}  Ka5 {[%clk 0:00:23]} 33. Qxa7+ {[%clk 0:00:12]}  Qxa7 {[%clk 0:00:24]} 1-0


[Site "https://www.chess.com"]

[Event "Titled Tuesday Blitz February 21 Late 2023"]
[White "Gholami Orimi, Mahdi"]
[Black "Bortnyk, Mykola"]
[WhiteFideId "12558486"]
[BlackFideId "14120836"]
[WhiteElo "2420"]
[BlackElo "2425"]
[Result "0-1"]
[Round "07"]
[TimeControl "180+2"]
[Date "2023.02.21"]
[WhiteClock "0:00:16"]
[BlackClock "0:00:17"]

1. d4 {[%clk 0:03:00]}  d5 {[%clk 0:02:59]} 2. c4 {[%clk 0:03:01]}  dxc4 {[%clk 0:02:59]} 3. e4 {[%clk 0:03:00]}  e5 {[%clk 0:02:59]} 4. Nf3 {[%clk 0:02:59]}  exd4 {[%clk 0:02:59]} 5. Bxc4 {[%clk 0:02:59]}  Nc6 {[%clk 0:03:00]} 6. O-O {[%clk 0:02:52]}  Be6 {[%clk 0:03:00]} 7. Bxe6 {[%clk 0:02:52]}  fxe6 {[%clk 0:03:01]} 8. Qb3 {[%clk 0:02:52]}  Qd7 {[%clk 0:03:00]} 9. Qxb7 {[%clk 0:02:52]}  Rb8 {[%clk 0:03:01]} 10. Qa6 {[%clk 0:02:52]}  Nf6 {[%clk 0:03:01]} 11. Nbd2 {[%clk 0:02:51]}  e5 {[%clk 0:02:58]} 12. b3 {[%clk 0:02:48]}  Bd6 {[%clk 0:02:55]} 13. Qc4 {[%clk 0:02:44]}  Rb4 {[%clk 0:02:53]} 14. Qc2 {[%clk 0:02:43]}  O-O {[%clk 0:02:52]} 15. Ba3 {[%clk 0:02:37]}  Rb6 {[%clk 0:02:51]} 16. Bc5 {[%clk 0:02:36]}  Rbb8 {[%clk 0:02:38]} 17. Rac1 {[%clk 0:02:36]}  Ne7 {[%clk 0:02:31]} 18. Ne1 {[%clk 0:02:30]}  Kh8 {[%clk 0:02:29]} 19. Nd3 {[%clk 0:02:26]}  Ng6 {[%clk 0:02:29]} 20. Bxa7 {[%clk 0:02:13]}  Ra8 {[%clk 0:02:28]} 21. Bc5 {[%clk 0:02:14]}  Qg4 {[%clk 0:02:22]} 22. f3 {[%clk 0:02:06]}  Qg5 {[%clk 0:02:22]} 23. Bxd6 {[%clk 0:01:52]}  cxd6 {[%clk 0:02:20]} 24. Nc4 {[%clk 0:01:52]}  d5 {[%clk 0:02:13]} 25. Ncxe5 {[%clk 0:01:48]}  Nxe5 {[%clk 0:01:51]} 26. f4 {[%clk 0:01:47]}  Qh6 {[%clk 0:01:47]} 27. Nxe5 {[%clk 0:01:43]}  dxe4 {[%clk 0:01:44]} 28. Qc4 {[%clk 0:01:38]}  d3 {[%clk 0:01:33]} 29. Nf7+ {[%clk 0:01:27]}  Rxf7 {[%clk 0:01:33]} 30. Qxf7 {[%clk 0:01:28]}  d2 {[%clk 0:01:32]} 31. Qb7 {[%clk 0:01:18]}  Rg8 {[%clk 0:01:13]} 32. Rc8 {[%clk 0:00:37]}  Qh5 {[%clk 0:01:11]} 33. Rxg8+ {[%clk 0:00:31]}  Nxg8 {[%clk 0:01:12]} 34. Qxe4 {[%clk 0:00:27]}  d1=Q {[%clk 0:01:06]} 35. Rxd1 {[%clk 0:00:27]}  Qxd1+ {[%clk 0:01:07]} 36. Kf2 {[%clk 0:00:28]}  Qd2+ {[%clk 0:01:08]} 37. Kg3 {[%clk 0:00:24]}  Qxa2 {[%clk 0:01:07]} 38. Qc4 {[%clk 0:00:24]}  h5 {[%clk 0:01:00]} 39. h3 {[%clk 0:00:22]}  Nf6 {[%clk 0:00:53]} 40. Qd3 {[%clk 0:00:22]}  Qb2 {[%clk 0:00:49]} 41. Qd8+ {[%clk 0:00:22]}  Kh7 {[%clk 0:00:49]} 42. Qd3+ {[%clk 0:00:22]}  Kh6 {[%clk 0:00:50]} 43. Qe3 {[%clk 0:00:16]}  Qc2 {[%clk 0:00:46]} 44. b4 {[%clk 0:00:14]}  Qf5 {[%clk 0:00:37]} 45. Qd4 {[%clk 0:00:10]}  Ne4+ {[%clk 0:00:27]} 46. Kf3 {[%clk 0:00:08]}  Ng5+ {[%clk 0:00:24]} 47. Ke3 {[%clk 0:00:09]}  Qe6+ {[%clk 0:00:16]} 48. Qe5 {[%clk 0:00:04]}  Qb3+ {[%clk 0:00:16]} 49. Kf2 {[%clk 0:00:03]}  Nf7 {[%clk 0:00:15]} 50. Qc5 {[%clk 0:00:03]}  Qe6 {[%clk 0:00:10]} 51. Kg3 {[%clk 0:00:02]}  Nd6 {[%clk 0:00:09]} 52. Kh2 {[%clk 0:00:02]}  Qf6 {[%clk 0:00:06]} 53. g3 {[%clk 0:00:02]}  Ne4 {[%clk 0:00:05]} 54. Qe3 {[%clk 0:00:02]}  Qb2+ {[%clk 0:00:05]} 55. Kg1 {[%clk 0:00:02]}  Qxb4 {[%clk 0:00:06]} 56. f5+ {[%clk 0:00:03]}  Kh7 {[%clk 0:00:06]} 57. Qf4 {[%clk 0:00:03]}  Qb1+ {[%clk 0:00:06]} 58. Kg2 {[%clk 0:00:04]}  Qc2+ {[%clk 0:00:07]} 59. Kg1 {[%clk 0:00:02]}  Qd1+ {[%clk 0:00:07]} 60. Kg2 {[%clk 0:00:03]}  Qe2+ {[%clk 0:00:07]} 61. Kg1 {[%clk 0:00:02]}  Nd2 {[%clk 0:00:07]} 62. Qf2 {[%clk 0:00:01]}  Qxf2+ {[%clk 0:00:04]} 63. Kxf2 {[%clk 0:00:01]}  Ne4+ {[%clk 0:00:05]} 64. Kf3 {[%clk 0:00:02]}  Nf6 {[%clk 0:00:06]} 65. Kf4 {[%clk 0:00:03]}  Kh6 {[%clk 0:00:06]} 66. g4 {[%clk 0:00:03]}  Nh7 {[%clk 0:00:06]} 67. Kg3 {[%clk 0:00:02]}  hxg4 {[%clk 0:00:05]} 68. Kxg4 {[%clk 0:00:02]}  Nf6+ {[%clk 0:00:04]} 69. Kh4 {[%clk 0:00:03]}  Nd7 {[%clk 0:00:03]} 70. Kg4 {[%clk 0:00:03]}  Ne5+ {[%clk 0:00:03]} 71. Kf4 {[%clk 0:00:04]}  Nf7 {[%clk 0:00:03]} 72. Kg4 {[%clk 0:00:04]}  Ng5 {[%clk 0:00:03]} 73. Kh4 {[%clk 0:00:03]}  Nh7 {[%clk 0:00:02]} 74. Kg4 {[%clk 0:00:03]}  Nf8 {[%clk 0:00:03]} 75. Kh4 {[%clk 0:00:04]}  Kh7 {[%clk 0:00:03]} 76. Kg5 {[%clk 0:00:04]}  Nd7 {[%clk 0:00:04]} 77. h4 {[%clk 0:00:03]}  Nf6 {[%clk 0:00:04]} 78. h5 {[%clk 0:00:03]}  Ng8 {[%clk 0:00:05]} 79. h6 {[%clk 0:00:01]}  gxh6+ {[%clk 0:00:04]} 80. Kh4 {[%clk 0:00:01]}  Nf6 {[%clk 0:00:04]} 81. Kg3 {[%clk 0:00:02]}  Kg7 {[%clk 0:00:05]} 82. Kh4 {[%clk 0:00:03]}  Kf7 {[%clk 0:00:05]} 83. Kg3 {[%clk 0:00:03]}  Ke7 {[%clk 0:00:06]} 84. Kf4 {[%clk 0:00:04]}  Kd6 {[%clk 0:00:07]} 85. Kg3 {[%clk 0:00:05]}  Ke5 {[%clk 0:00:08]} 86. Kh4 {[%clk 0:00:06]}  Kxf5 {[%clk 0:00:08]} 87. Kg3 {[%clk 0:00:07]}  Kg5 {[%clk 0:00:09]} 88. Kh3 {[%clk 0:00:08]}  h5 {[%clk 0:00:10]} 89. Kg3 {[%clk 0:00:08]}  h4+ {[%clk 0:00:11]} 90. Kh2 {[%clk 0:00:09]}  Kg4 {[%clk 0:00:11]} 91. Kg2 {[%clk 0:00:10]}  h3+ {[%clk 0:00:12]} 92. Kh1 {[%clk 0:00:11]}  Kg3 {[%clk 0:00:13]} 93. Kg1 {[%clk 0:00:12]}  Ng4 {[%clk 0:00:13]} 94. Kh1 {[%clk 0:00:12]}  Nf2+ {[%clk 0:00:14]} 95. Kg1 {[%clk 0:00:13]}  h2+ {[%clk 0:00:14]} 96. Kf1 {[%clk 0:00:14]}  h1=Q+ {[%clk 0:00:15]} 97. Ke2 {[%clk 0:00:15]}  Qd1+ {[%clk 0:00:16]} 98. Ke3 {[%clk 0:00:16]}  Qd3# {[%clk 0:00:17]} 0-1


[Site "https://www.chess.com"]